Workbook

Sheet Накладная
D1: ЗАПОЛНЕНИЕ НАКЛАДНОЙ
AW5: Номер документа | BG5: Дата составления
Y6: ТОВАРНАЯ НАКЛАДНАЯ
E8: Но- мер по по- рядку | H8: Товар | S8: Единица измерения | AC8: Вид упаков- ки | AH8: Количество | AR8: Масса брутто | AW8: Количест- во (масса нетто) | BC8: Цена, руб. коп. | BJ8: Сумма без учета НДС, руб. коп. | BQ8: НДС | CA8: Сумма с учетом НДС, руб. коп.
B9: № пп из закладки УЧЕТ | H9: наименование, характеристика, сорт, артикул товара | O9: код | S9: наиме- нование | X9: код по ОКЕИ | AH9: в одном месте | AM9: мест, штук | BQ9: ставка, % | BU9: сумма, руб. коп.
E10: 1 | H10: 2 | O10: 3 | S10: 4 | X10: 5 | AC10: 6 | AH10: 7 | AM10: 8 | AR10: 9 | AW10: 10 | BC10: 11 | BJ10: 12 | BQ10: 13 | BU10: 14 | CA10: 15
B11: 19 | E11: =IF(B11>0,E10,"") -> 1 | H11: =IFERROR(CONCATENATE(VLOOKUP(B11,Учет!B:I,3,0),", ",VLOOKUP(VLOOKUP(B11,Учет!B:I,2,0),Учет!C:I,4,0)),"") -> Ёжик, шт | S11: =IFERROR(VLOOKUP(B11,Учет!B4:I24,5,0),"") -> шт | AW11: =IFERROR(VLOOKUP(B11,Учет!B:I,8,0),"") -> 1 | BC11: =IFERROR(VLOOKUP(B11,Учет!B:I,7,0),"") -> 1231.333333 | BJ11: =IFERROR(AW11*BC11,"") -> 1231.333333 | BQ11: =IF(B11>0,0,"") -> 0 | BU11: =IF(B11>0,0,"") -> 0 | CA11: =BJ11 -> 1231.333333
E12: =IF(B12>0,E11+1,"") ->  | H12: =IFERROR(CONCATENATE(VLOOKUP(B12,Учет!B:I,3,0),", ",VLOOKUP(VLOOKUP(B12,Учет!B:I,2,0),Учет!C:I,4,0)),"") ->  | S12: =IFERROR(VLOOKUP(B12,Учет!B5:I25,5,0),"") ->  | AW12: =IFERROR(VLOOKUP(B12,Учет!B:I,8,0),"") ->  | BC12: =IFERROR(VLOOKUP(B12,Учет!B:I,7,0),"") ->  | BJ12: =IFERROR(BC12*AW12,"") ->  | CA12: =BJ12 -> 
H13: =IFERROR(CONCATENATE(VLOOKUP(B13,Учет!B:I,2,0),", ",VLOOKUP(VLOOKUP(B13,Учет!B:I,2,0),Учет!C:I,4,0)),"") ->  | S13: =IFERROR(VLOOKUP(B13,Учет!B6:I26,5,0),"") ->  | AW13: =IFERROR(VLOOKUP(B13,Учет!B:I,8,0),"") ->  | BC13: =IFERROR(VLOOKUP(B13,Учет!B:I,7,0),"") ->  | CA13: =BJ13 -> 
H14: =IFERROR(CONCATENATE(VLOOKUP(B14,Учет!B:I,2,0),", ",VLOOKUP(VLOOKUP(B14,Учет!B:I,2,0),Учет!C:I,4,0)),"") ->  | S14: =IFERROR(VLOOKUP(B14,Учет!B7:I27,5,0),"") ->  | AW14: =IFERROR(VLOOKUP(B14,Учет!B:I,8,0),"") ->  | BC14: =IFERROR(VLOOKUP(B14,Учет!B:I,7,0),"") -> 
H15: =IFERROR(CONCATENATE(VLOOKUP(B15,Учет!B:I,2,0),", ",VLOOKUP(VLOOKUP(B15,Учет!B:I,2,0),Учет!C:I,4,0)),"") ->  | S15: =IFERROR(VLOOKUP(B15,Учет!B8:I28,5,0),"") ->  | AW15: =IFERROR(VLOOKUP(B15,Учет!B:I,8,0),"") ->  | BC15: =IFERROR(VLOOKUP(B15,Учет!B:I,7,0),"") -> 
H16: =IFERROR(CONCATENATE(VLOOKUP(B16,Учет!B:I,2,0),", ",VLOOKUP(VLOOKUP(B16,Учет!B:I,2,0),Учет!C:I,4,0)),"") ->  | S16: =IFERROR(VLOOKUP(B16,Учет!B9:I29,5,0),"") ->  | AW16: =IFERROR(VLOOKUP(B16,Учет!B:I,8,0),"") ->  | BC16: =IFERROR(VLOOKUP(B16,Учет!B:I,7,0),"") -> 
H17: =IFERROR(CONCATENATE(VLOOKUP(B17,Учет!B:I,2,0),", ",VLOOKUP(VLOOKUP(B17,Учет!B:I,2,0),Учет!C:I,4,0)),"") ->  | S17: =IFERROR(VLOOKUP(B17,Учет!B10:I30,5,0),"") ->  | AW17: =IFERROR(VLOOKUP(B17,Учет!B:I,8,0),"") ->  | BC17: =IFERROR(VLOOKUP(B17,Учет!B:I,7,0),"") -> 
H18: =IFERROR(CONCATENATE(VLOOKUP(B18,Учет!B:I,2,0),", ",VLOOKUP(VLOOKUP(B18,Учет!B:I,2,0),Учет!C:I,4,0)),"") ->  | S18: =IFERROR(VLOOKUP(B18,Учет!B11:I31,5,0),"") ->  | AW18: =IFERROR(VLOOKUP(B18,Учет!B:I,8,0),"") ->  | BC18: =IFERROR(VLOOKUP(B18,Учет!B:I,7,0),"") -> 
E19: =IF(B19>0,E18+1,"") ->  | H19: =IFERROR(CONCATENATE(VLOOKUP(B19,Учет!B:I,2,0),", ",VLOOKUP(VLOOKUP(B19,Учет!B:I,2,0),Учет!C:I,4,0)),"") ->  | S19: =IFERROR(VLOOKUP(B19,Учет!B12:I32,5,0),"") ->  | AW19: =IFERROR(VLOOKUP(B19,Учет!B:I,8,0),"") ->  | BC19: =IFERROR(VLOOKUP(B19,Учет!B:I,7,0),"") -> 
H20: =IFERROR(CONCATENATE(VLOOKUP(B20,Учет!B:I,2,0),", ",VLOOKUP(VLOOKUP(B20,Учет!B:I,2,0),Учет!C:I,4,0)),"") ->  | S20: =IFERROR(VLOOKUP(B20,Учет!B13:I33,5,0),"") ->  | AW20: =IFERROR(VLOOKUP(B20,Учет!B:I,8,0),"") ->  | BC20: =IFERROR(VLOOKUP(B20,Учет!B:I,7,0),"") ->  | CA20: =BJ20 -> 
H21: =IFERROR(CONCATENATE(VLOOKUP(B21,Учет!B:I,2,0),", ",VLOOKUP(VLOOKUP(B21,Учет!B:I,2,0),Учет!C:I,4,0)),"") ->  | S21: =IFERROR(VLOOKUP(B21,Учет!B15:I34,5,0),"") ->  | AW21: =IFERROR(VLOOKUP(B21,Учет!B:I,8,0),"") ->  | BC21: =IFERROR(VLOOKUP(B21,Учет!B:I,7,0),"") -> 
H22: =IFERROR(CONCATENATE(VLOOKUP(B22,Учет!B:I,2,0),", ",VLOOKUP(VLOOKUP(B22,Учет!B:I,2,0),Учет!C:I,4,0)),"") ->  | S22: =IFERROR(VLOOKUP(B22,Учет!B16:I35,5,0),"") ->  | AW22: =IFERROR(VLOOKUP(B22,Учет!B:I,8,0),"") ->  | BC22: =IFERROR(VLOOKUP(B22,Учет!B:I,7,0),"") ->  | CA22: =BJ22 -> 
AH23: Итого | AW23: =IFERROR(SUM(AW11:BB22),"") -> 1 | BC23: Х | BJ23: =IFERROR(SUM(BJ11:BP22),"") -> 1231.333333 | BQ23: Х | BU23: =IFERROR(SUM(BU11:BZ22),"") -> 0 | CA23: =IFERROR(SUM(CA11:CH22),"") -> 1231.333333

Sheet СчетЗаказ
J1: БЛАНК ЗАПОВНЕННЯ
B3: 34 | E3: Одержувач | J3: Андрей
E4: Телефон | J4: 6650505050
E5: Адреса: | J5: г. Киев ул.МирYYYYYYльская 8а
J7: ЗАМОВЛЕННЯ | P7: Номер документа
P8: 34 | U8: =TODAY() -> 2021-08-31
P9: =TODAY() -> 2021-08-31
E10: № п/п | F10: Код | J10: Найменування товару | S10: Ширина | U10: Довжина | W10: Кіл-ть | Y10: Ціна | AA10: % | AB10: Сума
B11: 1215 | E11: 1 | F11: =IFERROR(VLOOKUP(B11,Подоконники!F:J,1,0),"") -> 1215 | J11: =IFERROR(CONCATENATE(VLOOKUP(B11,Подоконники!F:J,2,0)," (",VLOOKUP(B11,Подоконники!F:J,5,0),")"),"") -> Підвіконня KRAFT Горіх (м. п.) | S11: =IFERROR(VLOOKUP(B11,Подоконники!F:J,3,0),"") -> 150 | U11: 1200 | W11: 1 | Y11: =IFERROR(VLOOKUP(B11,Подоконники!F:J,4,0),"") -> 130 | AB11: =IF(B11="","",Y11*U11/1000*W11*(1-AA11)) -> 156
B12: 1215 | E12: =IF(B12="","",E11+1) -> 2 | F12: =IFERROR(VLOOKUP(B12,Подоконники!F:J,1,0),"") -> 1215 | J12: =IFERROR(CONCATENATE(VLOOKUP(B12,Подоконники!F:J,2,0)," (",VLOOKUP(B12,Подоконники!F:J,5,0),")"),"") -> Підвіконня KRAFT Горіх (м. п.) | S12: =IFERROR(VLOOKUP(B12,Подоконники!F:J,3,0),"") -> 150 | U12: 1305 | W12: 1 | Y12: =IFERROR(VLOOKUP(B12,Подоконники!F:J,4,0),"") -> 130 | AB12: =IF(B12="","",Y12*U12/1000*W12*(1-AA12)) -> 169.65
B13: 1201 | E13: =IF(B13="","",E12+1) -> 3 | F13: =IFERROR(VLOOKUP(B13,Подоконники!F:J,1,0),"") -> 1201 | J13: =IFERROR(CONCATENATE(VLOOKUP(B13,Подоконники!F:J,2,0)," (",VLOOKUP(B13,Подоконники!F:J,5,0),")"),"") -> Заглушка до п-ння KRAFT Горіх (шт.) | S13: =IFERROR(VLOOKUP(B13,Подоконники!F:J,3,0),"") -> 0 | U13: 1 | W13: 2 | Y13: =IFERROR(VLOOKUP(B13,Подоконники!F:J,4,0),"") -> 45 | AB13: =IF(B13="","",Y13*U13/1000*W13*(1-AA13)) -> 0.09
F14: =IFERROR(VLOOKUP(B14,Подоконники!F:J,1,0),"") ->  | J14: =IFERROR(CONCATENATE(VLOOKUP(B14,Подоконники!F:J,2,0)," (",VLOOKUP(B14,Подоконники!F:J,5,0),")"),"") ->  | S14: =IFERROR(VLOOKUP(B14,Подоконники!F:J,3,0),"") ->  | Y14: =IFERROR(VLOOKUP(B14,Подоконники!F:J,4,0),"") ->  | AB14: =IF(B14="","",Y14*U14/1000*W14*(1-AA14)) -> 
F15: =IFERROR(VLOOKUP(B15,Подоконники!F:J,1,0),"") ->  | J15: =IFERROR(CONCATENATE(VLOOKUP(B15,Подоконники!F:J,2,0)," (",VLOOKUP(B15,Подоконники!F:J,5,0),")"),"") ->  | S15: =IFERROR(VLOOKUP(B15,Подоконники!F:J,3,0),"") ->  | Y15: =IFERROR(VLOOKUP(B15,Подоконники!F:J,4,0),"") -> 
F16: =IFERROR(VLOOKUP(B16,Подоконники!F:J,1,0),"") ->  | J16: =IFERROR(CONCATENATE(VLOOKUP(B16,Подоконники!F:J,2,0)," (",VLOOKUP(B16,Подоконники!F:J,5,0),")"),"") ->  | S16: =IFERROR(VLOOKUP(B16,Подоконники!F:J,3,0),"") ->  | Y16: =IFERROR(VLOOKUP(B16,Подоконники!F:J,4,0),"") -> 
F17: =IFERROR(VLOOKUP(B17,Подоконники!F:J,1,0),"") ->  | J17: =IFERROR(CONCATENATE(VLOOKUP(B17,Подоконники!F:J,2,0)," (",VLOOKUP(B17,Подоконники!F:J,5,0),")"),"") ->  | S17: =IFERROR(VLOOKUP(B17,Подоконники!F:J,3,0),"") ->  | Y17: =IFERROR(VLOOKUP(B17,Подоконники!F:J,4,0),"") -> 
F18: =IFERROR(VLOOKUP(B18,Подоконники!F:J,1,0),"") ->  | J18: =IFERROR(CONCATENATE(VLOOKUP(B18,Подоконники!F:J,2,0)," (",VLOOKUP(B18,Подоконники!F:J,5,0),")"),"") ->  | S18: =IFERROR(VLOOKUP(B18,Подоконники!F:J,3,0),"") ->  | Y18: =IFERROR(VLOOKUP(B18,Подоконники!F:J,4,0),"") -> 
F19: =IFERROR(VLOOKUP(B19,Подоконники!F:J,1,0),"") ->  | J19: =IFERROR(CONCATENATE(VLOOKUP(B19,Подоконники!F:J,2,0)," (",VLOOKUP(B19,Подоконники!F:J,5,0),")"),"") ->  | S19: =IFERROR(VLOOKUP(B19,Подоконники!F:J,3,0),"") ->  | Y19: =IFERROR(VLOOKUP(B19,Подоконники!F:J,4,0),"") -> 
E20: =IF(B20="","",#REF!+1) ->  | F20: =IFERROR(VLOOKUP(B20,Подоконники!F:J,1,0),"") ->  | J20: =IFERROR(CONCATENATE(VLOOKUP(B20,Подоконники!F:J,2,0)," (",VLOOKUP(B20,Подоконники!F:J,5,0),")"),"") ->  | S20: =IFERROR(VLOOKUP(B20,Подоконники!F:J,3,0),"") ->  | Y20: =IFERROR(VLOOKUP(B20,Подоконники!F:J,4,0),"") ->  | AB20: =IF(B20="","",Y20*U20/1000*W20*(1-AA20)) -> 
AB21: =CEILING(SUM(AB11:AC20),1) -> 326

Sheet Учет
A1: i
B3: №пп | C3: Артикул | D3: Наименование Продукции | E3: Размер | F3: ЕдИзм | G3: КаналСбыта | H3: Цена | I3: Кол-во
B4: =ROW(Учет!$B4)-3 -> 1 | C4: A0001 | D4: Футболка RS, солнце | F4: шт | G4: Склад РТД | H4: 100 | I4: 2
B5: =ROW(Учет!$B5)-3 -> 2 | C5: A000299999 | D5: Футболка RS, заяц | F5: шт | G5: Склад РТД | H5: 110 | I5: 2
B6: =ROW(Учет!$B6)-3 -> 3 | C6: A0003 | D6: Футболка RS, зайчиха | F6: шт | G6: Склад РТД | H6: 200 | I6: 1
B7: =ROW(Учет!$B7)-3 -> 4 | C7: A0004 | D7: Футболка RS, ведро | F7: шт | G7: Склад РТД | H7: 130 | I7: 2
B8: =ROW(Учет!$B8)-3 -> 5 | C8: A0005 | D8: Майка RS, солнце | F8: шт | G8: Склад РТД | H8: 170 | I8: 1
B9: =ROW(Учет!$B9)-3 -> 6 | C9: A000777 | D9: Майка RS, зайчиха | F9: шт | G9: Склад РТД | H9: 540 | I9: 1
B10: =ROW(Учет!$B10)-3 -> 7 | C10: A0007 | D10: Майка RS, заяц | F10: шт | G10: Склад РТД | H10: 439.3333333 | I10: 1
B11: =ROW(Учет!$B11)-3 -> 8 | C11: A0008 | D11: Майка RS, морковка | F11: шт | G11: Склад РТД | H11: 505.3333333 | I11: 1
B12: =ROW(Учет!$B12)-3 -> 9 | C12: A0009 | D12: Шапка RS | F12: шт | G12: Склад РТД | H12: 571.3333333 | I12: 1
B13: =ROW(Учет!$B13)-3 -> 10 | C13: A0010 | D13: Медведь пират | F13: шт | G13: Склад РТД | H13: 637.3333333 | I13: 1
B15: =ROW(Учет!$B15)-4 -> 11 | C15: A0011 | D15: Зайка с корзинкой | F15: шт | G15: Склад РТД | H15: 703.3333333 | I15: 1
B16: =ROW(Учет!$B16)-4 -> 12 | C16: A0012 | D16: Ёжик с яблоком | F16: шт | G16: Склад РТД | H16: 769.3333333 | I16: 1
B17: =ROW(Учет!$B17)-4 -> 13 | C17: A0013 | D17: Ежичка с морковкой | F17: шт | G17: Склад РТД | H17: 835.3333333 | I17: 1
B18: =ROW(Учет!$B18)-4 -> 14 | C18: A0014 | D18: Котик желтый | F18: шт | G18: Склад РТД | H18: 901.3333333 | I18: 1
B19: =ROW(Учет!$B19)-4 -> 15 | C19: A0015 | D19: Пандочка | F19: шт | G19: Склад РТД | H19: 967.3333333 | I19: 1
B20: =ROW(Учет!$B20)-4 -> 16 | C20: A0016 | D20: Тигр | F20: шт | G20: Склад РТД | H20: 1033.333333 | I20: 1
B21: =ROW(Учет!$B21)-4 -> 17 | C21: A0017 | D21: Слон | F21: шт | G21: Склад РТД | H21: 1099.333333 | I21: 1
B22: =ROW(Учет!$B22)-4 -> 18 | C22: A0018 | D22: Кошки | F22: пара | G22: Склад РТД | H22: 1165.333333 | I22: 1
B23: =ROW(Учет!$B23)-4 -> 19 | C23: A0019 | D23: Ёжик | F23: шт | G23: Склад РТД | H23: 1231.333333 | I23: 1
B24: =ROW(Учет!$B24)-4 -> 20 | C24: A0020 | D24: Собаки | F24: пара | G24: Склад РТД | H24: 1297.333333 | I24: 1

Sheet Подоконники
C1: i
D2: Серия | F2: Артикул | G2: Наименование | H2: Ширина | I2: Цена | J2: ЕдИзм
C3: KRAFT Біле | D3: KRAFT Біле | F3: 1015 | G3: Підвіконня KRAFT Біле | H3: 150 | I3: =Прайс!C17 -> 105 | J3: м. п.
C4: KRAFT Біле | D4: KRAFT Біле | F4: 1020 | G4: Підвіконня KRAFT Біле | H4: 200 | I4: =Прайс!D17 -> 139 | J4: м. п.
C5: KRAFT Біле | D5: KRAFT Біле | F5: 1025 | G5: Підвіконня KRAFT Біле | H5: 250 | I5: =Прайс!E17 -> 174 | J5: м. п.
C6: KRAFT Біле | D6: KRAFT Біле | F6: 1030 | G6: Підвіконня KRAFT Біле | H6: 300 | I6: =Прайс!F17 -> 208 | J6: м. п.
C7: KRAFT Біле | D7: KRAFT Біле | F7: 1035 | G7: Підвіконня KRAFT Біле | H7: 350 | I7: =Прайс!G17 -> 243 | J7: м. п.
C8: KRAFT Біле | D8: KRAFT Біле | F8: 1040 | G8: Підвіконня KRAFT Біле | H8: 400 | I8: =Прайс!H17 -> 278 | J8: м. п.
C9: KRAFT Біле | D9: KRAFT Біле | F9: 1045 | G9: Підвіконня KRAFT Біле | H9: 450 | I9: =Прайс!I17 -> 312 | J9: м. п.
C10: KRAFT Біле | D10: KRAFT Біле | F10: 1050 | G10: Підвіконня KRAFT Біле | H10: 500 | I10: =Прайс!J17 -> 347 | J10: м. п.
C11: KRAFT Біле | D11: KRAFT Біле | F11: 1055 | G11: Підвіконня KRAFT Біле | H11: 600 | I11: =Прайс!K17 -> 416 | J11: м. п.
C12: KRAFT Біле | D12: KRAFT Біле | F12: 1060 | G12: Підвіконня KRAFT Біле | H12: 700 | I12: =Прайс!L17 -> 485 | J12: м. п.
C13: KRAFT Біле | D13: KRAFT Біле | F13: 1001 | G13: Заглушка до п-ння KRAFT Біла | I13: =Прайс!N17 -> 35 | J13: шт.
C14: KRAFT Біле | D14: KRAFT Біле | F14: 1002 | G14: З'єднювач до п-ння KRAFT Біла | I14: =Прайс!O17 -> 45 | J14: шт.
C15: KRAFT Антрацит | D15: KRAFT Антрацит | F15: 1115 | G15: Підвіконня KRAFT Антрацит | H15: 150 | I15: =Прайс!C$18 -> 130 | J15: м. п.
C16: KRAFT Антрацит | D16: KRAFT Антрацит | F16: 1120 | G16: Підвіконня KRAFT Антрацит | H16: 200 | I16: =Прайс!D$18 -> 173 | J16: м. п.
C17: KRAFT Антрацит | D17: KRAFT Антрацит | F17: 1125 | G17: Підвіконня KRAFT Антрацит | H17: 250 | I17: =Прайс!E$18 -> 216 | J17: м. п.
C18: KRAFT Антрацит | D18: KRAFT Антрацит | F18: 1130 | G18: Підвіконня KRAFT Антрацит | H18: 300 | I18: =Прайс!F$18 -> 260 | J18: м. п.
C19: KRAFT Антрацит | D19: KRAFT Антрацит | F19: 1135 | G19: Підвіконня KRAFT Антрацит | H19: 350 | I19: =Прайс!G$18 -> 303 | J19: м. п.
C20: KRAFT Антрацит | D20: KRAFT Антрацит | F20: 1140 | G20: Підвіконня KRAFT Антрацит | H20: 400 | I20: =Прайс!H$18 -> 346 | J20: м. п.
C21: KRAFT Антрацит | D21: KRAFT Антрацит | F21: 1145 | G21: Підвіконня KRAFT Антрацит | H21: 450 | I21: =Прайс!I$18 -> 389 | J21: м. п.
C22: KRAFT Антрацит | D22: KRAFT Антрацит | F22: 1150 | G22: Підвіконня KRAFT Антрацит | H22: 500 | I22: =Прайс!J$18 -> 433 | J22: м. п.
C23: KRAFT Антрацит | D23: KRAFT Антрацит | F23: 1160 | G23: Підвіконня KRAFT Антрацит | H23: 600 | I23: =Прайс!K$18 -> 519 | J23: м. п.
C24: KRAFT Антрацит | D24: KRAFT Антрацит | F24: 1101 | G24: Заглушка до п-ння KRAFT Антрацит | I24: =Прайс!N$18 -> 45 | J24: шт.
C25: KRAFT Антрацит | D25: KRAFT Антрацит | F25: 1102 | G25: З'єднювач до п-ння KRAFT Антрацит | I25: =Прайс!O$18 -> 55 | J25: шт.
C26: KRAFT Горіх | D26: KRAFT Горіх | F26: 1215 | G26: Підвіконня KRAFT Горіх | H26: 150 | I26: =Прайс!C$18 -> 130 | J26: м. п.
C27: KRAFT Горіх | D27: KRAFT Горіх | F27: 1220 | G27: Підвіконня KRAFT Горіх | H27: 200 | I27: =Прайс!D$18 -> 173 | J27: м. п.
C28: KRAFT Горіх | D28: KRAFT Горіх | F28: 1225 | G28: Підвіконня KRAFT Горіх | H28: 250 | I28: =Прайс!E$18 -> 216 | J28: м. п.
C29: KRAFT Горіх | D29: KRAFT Горіх | F29: 1230 | G29: Підвіконня KRAFT Горіх | H29: 300 | I29: =Прайс!F$18 -> 260 | J29: м. п.
C30: KRAFT Горіх | D30: KRAFT Горіх | F30: 1235 | G30: Підвіконня KRAFT Горіх | H30: 350 | I30: =Прайс!G$18 -> 303 | J30: м. п.
C31: KRAFT Горіх | D31: KRAFT Горіх | F31: 1240 | G31: Підвіконня KRAFT Горіх | H31: 400 | I31: =Прайс!H$18 -> 346 | J31: м. п.
C32: KRAFT Горіх | D32: KRAFT Горіх | F32: 1245 | G32: Підвіконня KRAFT Горіх | H32: 450 | I32: =Прайс!I$18 -> 389 | J32: м. п.
C33: KRAFT Горіх | D33: KRAFT Горіх | F33: 1250 | G33: Підвіконня KRAFT Горіх | H33: 500 | I33: =Прайс!J$18 -> 433 | J33: м. п.
C34: KRAFT Горіх | D34: KRAFT Горіх | F34: 1260 | G34: Підвіконня KRAFT Горіх | H34: 600 | I34: =Прайс!K$18 -> 519 | J34: м. п.
C35: KRAFT Горіх | D35: KRAFT Горіх | F35: 1201 | G35: Заглушка до п-ння KRAFT Горіх | I35: =Прайс!N$18 -> 45 | J35: шт.
C36: KRAFT Горіх | D36: KRAFT Горіх | F36: 1202 | G36: З'єднювач до п-ння KRAFT Горіх | I36: =Прайс!O$18 -> 55 | J36: шт.
C37: KRAFT Сірий Дуб | D37: KRAFT Сірий Дуб | F37: 1315 | G37: Підвіконня KRAFT Сірий Дуб | H37: 150 | I37: =Прайс!C$18 -> 130 | J37: м. п.
C38: KRAFT Сірий Дуб | D38: KRAFT Сірий Дуб | F38: 1320 | G38: Підвіконня KRAFT Сірий Дуб | H38: 200 | I38: =Прайс!D$18 -> 173 | J38: м. п.
C39: KRAFT Сірий Дуб | D39: KRAFT Сірий Дуб | F39: 1325 | G39: Підвіконня KRAFT Сірий Дуб | H39: 250 | I39: =Прайс!E$18 -> 216 | J39: м. п.
C40: KRAFT Сірий Дуб | D40: KRAFT Сірий Дуб | F40: 1330 | G40: Підвіконня KRAFT Сірий Дуб | H40: 300 | I40: =Прайс!F$18 -> 260 | J40: м. п.
C41: KRAFT Сірий Дуб | D41: KRAFT Сірий Дуб | F41: 1335 | G41: Підвіконня KRAFT Сірий Дуб | H41: 350 | I41: =Прайс!G$18 -> 303 | J41: м. п.
C42: KRAFT Сірий Дуб | D42: KRAFT Сірий Дуб | F42: 1340 | G42: Підвіконня KRAFT Сірий Дуб | H42: 400 | I42: =Прайс!H$18 -> 346 | J42: м. п.
C43: KRAFT Сірий Дуб | D43: KRAFT Сірий Дуб | F43: 1345 | G43: Підвіконня KRAFT Сірий Дуб | H43: 450 | I43: =Прайс!I$18 -> 389 | J43: м. п.
C44: KRAFT Сірий Дуб | D44: KRAFT Сірий Дуб | F44: 1350 | G44: Підвіконня KRAFT Сірий Дуб | H44: 500 | I44: =Прайс!J$18 -> 433 | J44: м. п.
C45: KRAFT Сірий Дуб | D45: KRAFT Сірий Дуб | F45: 1360 | G45: Підвіконня KRAFT Сірий Дуб | H45: 600 | I45: =Прайс!K$18 -> 519 | J45: м. п.
C46: KRAFT Сірий Дуб | D46: KRAFT Сірий Дуб | F46: 1301 | G46: Заглушка до п-ння KRAFT Сірий Дуб | I46: =Прайс!N$18 -> 45 | J46: шт.
C47: KRAFT Сірий Дуб | D47: KRAFT Сірий Дуб | F47: 1302 | G47: З'єднювач до п-ння KRAFT Сірий Дуб | I47: =Прайс!O$18 -> 55 | J47: шт.
C48: KRAFT Полярний Дуб | D48: KRAFT Полярний Дуб | F48: 1415 | G48: Підвіконня KRAFT Полярний Дуб | H48: 150 | I48: =Прайс!C$18 -> 130 | J48: м. п.
C49: KRAFT Полярний Дуб | D49: KRAFT Полярний Дуб | F49: 1420 | G49: Підвіконня KRAFT Полярний Дуб | H49: 200 | I49: =Прайс!D$18 -> 173 | J49: м. п.
C50: KRAFT Полярний Дуб | D50: KRAFT Полярний Дуб | F50: 1425 | G50: Підвіконня KRAFT Полярний Дуб | H50: 250 | I50: =Прайс!E$18 -> 216 | J50: м. п.
C51: KRAFT Полярний Дуб | D51: KRAFT Полярний Дуб | F51: 1430 | G51: Підвіконня KRAFT Полярний Дуб | H51: 300 | I51: =Прайс!F$18 -> 260 | J51: м. п.
C52: KRAFT Полярний Дуб | D52: KRAFT Полярний Дуб | F52: 1435 | G52: Підвіконня KRAFT Полярний Дуб | H52: 350 | I52: =Прайс!G$18 -> 303 | J52: м. п.
C53: KRAFT Полярний Дуб | D53: KRAFT Полярний Дуб | F53: 1440 | G53: Підвіконня KRAFT Полярний Дуб | H53: 400 | I53: =Прайс!H$18 -> 346 | J53: м. п.
C54: KRAFT Полярний Дуб | D54: KRAFT Полярний Дуб | F54: 1445 | G54: Підвіконня KRAFT Полярний Дуб | H54: 450 | I54: =Прайс!I$18 -> 389 | J54: м. п.
C55: KRAFT Полярний Дуб | D55: KRAFT Полярний Дуб | F55: 1450 | G55: Підвіконня KRAFT Полярний Дуб | H55: 500 | I55: =Прайс!J$18 -> 433 | J55: м. п.
C56: KRAFT Полярний Дуб | D56: KRAFT Полярний Дуб | F56: 1460 | G56: Підвіконня KRAFT Полярний Дуб | H56: 600 | I56: =Прайс!K$18 -> 519 | J56: м. п.
C57: KRAFT Полярний Дуб | D57: KRAFT Полярний Дуб | F57: 1401 | G57: Заглушка до п-ння KRAFT Полярний Дуб | I57: =Прайс!N$18 -> 45 | J57: шт.
C58: KRAFT Полярний Дуб | D58: KRAFT Полярний Дуб | F58: 1402 | G58: З'єднювач до п-ння KRAFT Полярний Дуб | I58: =Прайс!O$18 -> 55 | J58: шт.
C59: KRAFT Золотий Дуб | D59: KRAFT Золотий Дуб | F59: 1515 | G59: Підвіконня KRAFT Золотий Дуб | H59: 150 | I59: =Прайс!C$18 -> 130 | J59: м. п.
C60: KRAFT Золотий Дуб | D60: KRAFT Золотий Дуб | F60: 1520 | G60: Підвіконня KRAFT Золотий Дуб | H60: 200 | I60: =Прайс!D$18 -> 173 | J60: м. п.
C61: KRAFT Золотий Дуб | D61: KRAFT Золотий Дуб | F61: 1525 | G61: Підвіконня KRAFT Золотий Дуб | H61: 250 | I61: =Прайс!E$18 -> 216 | J61: м. п.
C62: KRAFT Золотий Дуб | D62: KRAFT Золотий Дуб | F62: 1530 | G62: Підвіконня KRAFT Золотий Дуб | H62: 300 | I62: =Прайс!F$18 -> 260 | J62: м. п.
C63: KRAFT Золотий Дуб | D63: KRAFT Золотий Дуб | F63: 1535 | G63: Підвіконня KRAFT Золотий Дуб | H63: 350 | I63: =Прайс!G$18 -> 303 | J63: м. п.
C64: KRAFT Золотий Дуб | D64: KRAFT Золотий Дуб | F64: 1540 | G64: Підвіконня KRAFT Золотий Дуб | H64: 400 | I64: =Прайс!H$18 -> 346 | J64: м. п.
C65: KRAFT Золотий Дуб | D65: KRAFT Золотий Дуб | F65: 1545 | G65: Підвіконня KRAFT Золотий Дуб | H65: 450 | I65: =Прайс!I$18 -> 389 | J65: м. п.
C66: KRAFT Золотий Дуб | D66: KRAFT Золотий Дуб | F66: 1550 | G66: Підвіконня KRAFT Золотий Дуб | H66: 500 | I66: =Прайс!J$18 -> 433 | J66: м. п.
C67: KRAFT Золотий Дуб | D67: KRAFT Золотий Дуб | F67: 1560 | G67: Підвіконня KRAFT Золотий Дуб | H67: 600 | I67: =Прайс!K$18 -> 519 | J67: м. п.
C68: KRAFT Золотий Дуб | D68: KRAFT Золотий Дуб | F68: 1501 | G68: Заглушка до п-ння KRAFT Золотий Дуб | I68: =Прайс!N$18 -> 45 | J68: шт.
C69: KRAFT Золотий Дуб | D69: KRAFT Золотий Дуб | F69: 1502 | G69: З'єднювач до п-ння KRAFT Золотий Дуб | I69: =Прайс!O$18 -> 55 | J69: шт.
C70: KRAFT Темний Дуб | D70: KRAFT Темний Дуб | F70: 1615 | G70: Підвіконня KRAFT Темний Дуб | H70: 150 | I70: =Прайс!C$18 -> 130 | J70: м. п.
C71: KRAFT Темний Дуб | D71: KRAFT Темний Дуб | F71: 1620 | G71: Підвіконня KRAFT Темний Дуб | H71: 200 | I71: =Прайс!D$18 -> 173 | J71: м. п.
C72: KRAFT Темний Дуб | D72: KRAFT Темний Дуб | F72: 1625 | G72: Підвіконня KRAFT Темний Дуб | H72: 250 | I72: =Прайс!E$18 -> 216 | J72: м. п.
C73: KRAFT Темний Дуб | D73: KRAFT Темний Дуб | F73: 1630 | G73: Підвіконня KRAFT Темний Дуб | H73: 300 | I73: =Прайс!F$18 -> 260 | J73: м. п.
C74: KRAFT Темний Дуб | D74: KRAFT Темний Дуб | F74: 1635 | G74: Підвіконня KRAFT Темний Дуб | H74: 350 | I74: =Прайс!G$18 -> 303 | J74: м. п.
C75: KRAFT Темний Дуб | D75: KRAFT Темний Дуб | F75: 1640 | G75: Підвіконня KRAFT Темний Дуб | H75: 400 | I75: =Прайс!H$18 -> 346 | J75: м. п.
C76: KRAFT Темний Дуб | D76: KRAFT Темний Дуб | F76: 1645 | G76: Підвіконня KRAFT Темний Дуб | H76: 450 | I76: =Прайс!I$18 -> 389 | J76: м. п.
C77: KRAFT Темний Дуб | D77: KRAFT Темний Дуб | F77: 1650 | G77: Підвіконня KRAFT Темний Дуб | H77: 500 | I77: =Прайс!J$18 -> 433 | J77: м. п.
C78: KRAFT Темний Дуб | D78: KRAFT Темний Дуб | F78: 1660 | G78: Підвіконня KRAFT Темний Дуб | H78: 600 | I78: =Прайс!K$18 -> 519 | J78: м. п.
C79: KRAFT Темний Дуб | D79: KRAFT Темний Дуб | F79: 1601 | G79: Заглушка до п-ння KRAFT Темний Дуб | I79: =Прайс!N$18 -> 45 | J79: шт.
C80: KRAFT Темний Дуб | D80: KRAFT Темний Дуб | F80: 1602 | G80: З'єднювач до п-ння KRAFT Темний Дуб | I80: =Прайс!O$18 -> 55 | J80: шт.

Sheet Прайс
A2: Topalit | B2: грн
A3: ширина | B3: 100 | C3: 150 | D3: 200 | E3: 250 | F3: 300 | G3: 350 | H3: 400 | I3: 450 | J3: 500 | N3: ABS | O3: соед
A4: классик | C4: 942 | D4: 1177 | E4: 1322 | F4: 1476 | G4: 1767 | H4: 2017 | I4: 2554 | J4: 68.15 | M4: 70 | N4: 180 | O4: 530
A5: дизайн | C5: 1083 | D5: 1310 | E5: 1484 | F5: 1666 | G5: 2034 | H5: 2431 | I5: 2935 | J5: 3017 | M5: 70 | N5: 180 | O5: 530
A7: Werzalit | B7: грн
A8: ширина | B8: 100 | C8: 150 | D8: 200 | E8: 250 | F8: 300 | G8: 350 | H8: 400 | I8: 450 | J8: 500 | K8: 600 | N8: ABS | O8: соед
B9: 636 | C9: 828 | D9: 1050 | E9: 1200 | F9: 1344 | G9: 1584 | H9: 1824 | I9: 2040 | J9: 2340 | K9: 2580 | N9: 150 | O9: 530
A11: Crystalit | B11: грн
A12: ширина | C12: 150 | D12: 200 | E12: 250 | F12: 300 | G12: 350 | H12: 400 | I12: 450 | J12: 500 | K12: 600 | N12: Загл. | O12: соед
A13: Цена Грн. | C13: 260 | D13: 347 | E13: 434 | F13: 520 | G13: 607 | H13: 694 | I13: 780 | J13: 867 | K13: 1040 | N13: 50 | O13: 70
A15: Kraft | B15: грн
A16: ширина | C16: 150 | D16: 200 | E16: 250 | F16: 300 | G16: 350 | H16: 400 | I16: 450 | J16: 500 | K16: 600 | L16: 700 | N16: Загл. | O16: соед
A17: Белый | C17: 105 | D17: 139 | E17: 174 | F17: 208 | G17: 243 | H17: 278 | I17: 312 | J17: 347 | K17: 416 | L17: 485 | N17: 35 | O17: 45
A18: Цветной | C18: 130 | D18: 173 | E18: 216 | F18: 260 | G18: 303 | H18: 346 | I18: 389 | J18: 433 | K18: 519 | N18: 45 | O18: 55
A20: Sauberg | B20: грн | C20: 1.5
A21: ширина | B21: 100 | C21: 150 | D21: 200 | E21: 250 | F21: 300 | G21: 350 | H21: 400 | I21: 450 | J21: 500 | K21: <2к | L21: 600 | M21: 600<2к | N21: Загл. | O21: соед
A22: Бел. мат | B22: =38.57*1.5 -> 57.855 | C22: =57.86*1.5 -> 86.79 | D22: =77.14*1.5 -> 115.71 | E22: =96.43*1.5 -> 144.645 | F22: =115.72*1.5 -> 173.58 | G22: =135*1.5 -> 202.5 | H22: =154.29*1.5 -> 231.435 | I22: =173.57*1.5 -> 260.355 | J22: =192.86*1.5 -> 289.29 | K22: =192.86*1.5 -> 289.29 | L22: =231.43*1.5 -> 347.145 | M22: =231.43*1.5 -> 347.145 | N22: 30 | O22: 60
A23: Бел. глян | B23: =57*1.5 -> 85.5 | C23: =85.5*1.5 -> 128.25 | D23: =114*1.5 -> 171 | E23: =142.5*1.5 -> 213.75 | F23: =171*1.5 -> 256.5 | G23: =199.5*1.5 -> 299.25 | H23: =228*1.5 -> 342 | I23: =256.5*1.5 -> 384.75 | J23: =285*1.5 -> 427.5 | K23: =J23 -> 427.5 | L23: =342*1.5 -> 513 | M23: =L23 -> 513 | N23: 30 | O23: 60
A24: Цвет. мат | B24: =51.43*$C20 -> 77.145 | C24: =77.14*$C20 -> 115.71 | D24: =102.86*$C20 -> 154.29 | E24: =128.57*$C20 -> 192.855 | F24: =154.29*$C20 -> 231.435 | G24: =180*$C20 -> 270 | H24: =205.71*$C20 -> 308.565 | I24: =231.43*$C20 -> 347.145 | J24: =257.14*$C20 -> 385.71 | K24: =257.14*$C20 -> 385.71 | L24: =308.57*$C20 -> 462.855 | M24: =308.57*$C20 -> 462.855 | N24: 30 | O24: 60
A25: Цвет глян | B25: =64.14*$C20 -> 96.21 | C25: =96.21*$C20 -> 144.315 | D25: =128.28*$C20 -> 192.42 | E25: =160.35*$C20 -> 240.525 | F25: =192.43*$C20 -> 288.645 | G25: =224.5*$C20 -> 336.75 | H25: =256.57*$C20 -> 384.855 | I25: =288.64*$C20 -> 432.96 | J25: =320.71*$C20 -> 481.065 | K25: =J25 -> 481.065 | L25: =384.85*$C20 -> 577.275 | M25: =L25 -> 577.275 | N25: 30 | O25: 60
A26: Прям.біл | B26: =57*$C20 -> 85.5 | C26: =85.5*$C20 -> 128.25 | D26: =114*$C20 -> 171 | E26: =142.5*$C20 -> 213.75 | F26: =171*$C20 -> 256.5 | G26: =199.5*$C20 -> 299.25 | H26: =228*$C20 -> 342 | I26: =256.5*$C20 -> 384.75 | J26: =285*$C20 -> 427.5 | K26: =J26 -> 427.5 | L26: =342*$C20 -> 513 | M26: =L26 -> 513 | N26: 30 | O26: 60
A28: Plastolit | B28: грн
A29: ширина | B29: 100 | C29: 150 | D29: 200 | E29: 250 | F29: 300 | G29: 350 | H29: 400 | I29: 450 | J29: 500 | K29: 600 | N29: Загл. | O29: соед
A30: Мат+Глянец | B30: 153 | C30: 229 | D30: 303 | E30: 380 | F30: 454 | G30: 531 | H30: 607 | I30: 684 | J30: 760 | K30: 910 | N30: 50 | O30: 85
A32: Danke | B32: $ | грн | C32: 29
A33: ширина | B33: 100 | C33: 150 | D33: 200 | E33: 250 | F33: 300 | G33: 350 | H33: 400 | I33: 450 | J33: 500 | K33: 600 | L33: 700 | M33: Заг | N33: соед
A34: Premium | B34: 7.2 | C34: 10.8 | D34: 14.4 | E34: 18 | F34: 21.6 | G34: 25.2 | H34: 28.8 | I34: 32.4 | J34: 36 | K34: 43.2 | L34: 50.4 | M34: 2 | N34: 2.5
B35: =B34*$C32 -> 208.8 | C35: =C34*$C32 -> 313.2 | D35: =D34*$C32 -> 417.6 | E35: 522 | F35: 626.4 | G35: 730.8 | H35: 835.2 | I35: 939.6 | J35: 1044 | K35: 1252.8 | L35: 1461.6 | M35: 58 | N35: 72.5
A36: Standart | B36: 5.2 | C36: 7.8 | D36: 10.4 | E36: 13 | F36: 15.6 | G36: 18.2 | H36: 20.8 | I36: 23.4 | J36: 26 | K36: 31.2 | L36: 36.4 | M36: 2 | N36: 2.5
A37: Standart | B37: =B36*$C32 -> 150.8 | C37: =C36*$C32 -> 226.2 | D37: 301.6 | E37: 377 | F37: 452.4 | G37: 527.8 | H37: 603.2 | I37: 678.6 | J37: 754 | K37: 904.8 | L37: 1055.6 | M37: 58 | N37: 72.5
A38: Komfort | B38: 3 | C38: 4.5 | D38: 6 | E38: 7.5 | F38: 9 | G38: 10.5 | H38: 12 | I38: 13.5 | J38: 15 | K38: 18 | L38: 21 | M38: 1 | N38: 1.5
A39: Komfort | B39: =B38*$C32 -> 87 | C39: =C38*$C32 -> 130.5 | D39: 174 | E39: 217.5 | F39: 261 | G39: 304.5 | H39: 348 | I39: 391.5 | J39: 435 | K39: 522 | L39: 609 | M39: =M38*$C32 -> 29 | N39: =N38*$C32 -> 43.5
A41: Estera | B41: грн
A42: ширина | C42: 150 | D42: 200 | E42: 250 | F42: 300 | G42: 350 | H42: 400 | I42: 450 | J42: 500 | K42: 600 | N42: загл | O42: соед
A43: Цена грн | C43: 260 | D43: 347 | E43: 434 | F43: 520 | G43: 607 | H43: 694 | I43: 780 | J43: 867 | K43: 1040 | N43: 35 | O43: 70
A45: Openteck | B45: Грн | C45: 27
A46: ширина | B46: 100 | C46: 150 | D46: 200 | E46: 250 | F46: 300 | G46: 350 | H46: 400 | I46: 450 | J46: 500 | K46: 600 | L46: 650 | M46: 700 | N46: Загл. | O46: соед
A47: Цена Бел. | B47: =30.67*1.5 -> 46.005 | C47: =46*1.5 -> 69 | D47: =3*C45 -> 81 | E47: =3.78*C45 -> 102.06 | F47: =4.5*C45 -> 121.5 | G47: =5.2*C45 -> 140.4 | H47: =5.9*C45 -> 159.3 | I47: =6.7*C45 -> 180.9 | J47: =7.4*C45 -> 199.8 | K47: =8.9*C45 -> 240.3 | L47: =10.4*C45 -> 280.8 | M47: =10.4*C45 -> 280.8 | N47: 30 | O47: 60
A48: Цена Цвет. | B48: =1.5*C45 -> 40.5 | C48: =2.3*C45 -> 62.1 | D48: =3*C45 -> 81 | E48: =3.78*C45 -> 102.06 | F48: =4.5*C45 -> 121.5 | G48: =5.2*C45 -> 140.4 | H48: =5.9*C45 -> 159.3 | I48: =6.7*C45 -> 180.9 | J48: =7.4*C45 -> 199.8 | K48: =8.9*C45 -> 240.3 | L48: =10.4*C45 -> 280.8 | M48: =10.4*C45 -> 280.8 | N48: 30 | O48: 60
A50: WDS
A51: ширина | B51: 100 | C51: 150 | D51: 200 | E51: 250 | F51: 300 | G51: 350 | H51: 400 | I51: 450 | J51: 500 | K51: 600 | N51: Загл. | O51: соед
A52: Мат Бел. | C52: 190 | D52: 252 | E52: 315 | F52: 380 | G52: 440 | H52: 505 | I52: 566 | J52: 630 | K52: 755 | N52: 35 | O52: 70
A53: Глян, бел, сер мрам, зол дуб. | C53: 208 | D53: 278 | E53: 347 | F53: 416 | G53: 486 | H53: 555 | I53: 625 | J53: 693 | K53: 832 | N53: 35 | O53: 70

Sheet TEST
A1: 34789
B2: Одержувач | G2: =СчетЗаказ!J3 -> Андрей
B3: Телефон | G3: =СчетЗаказ!J4 -> 6650505050
B4: Адреса: | G4: =СчетЗаказ!J5 -> г. Киев ул.МирYYYYYYльская 8а
G6: ЗАМОВЛЕННЯ | M6: Номер документа
M7: =СчетЗаказ!P8 -> 34 | R7: =TODAY() -> 2021-08-31
M8: =TODAY() -> 2021-08-31
B9: № п/п | C9: Код | G9: Найменування товару | P9: Ширина | R9: Довжина | T9: Кіл-ть | V9: Ціна | X9: % | Y9: Сума
B10: =СчетЗаказ!E11 -> 1 | C10: =IFERROR(VLOOKUP(#REF!,Подоконники!C:G,1,0),"") ->  | G10: =СчетЗаказ!J11 -> Підвіконня KRAFT Горіх (м. п.) | P10: =СчетЗаказ!S11 -> 150 | R10: =СчетЗаказ!U11 -> 1200 | T10: =СчетЗаказ!W11 -> 1 | V10: =СчетЗаказ!Y11 -> 130 | X10: =СчетЗаказ!AA11 -> 0 | Y10: =СчетЗаказ!AB11 -> 156
B11: =СчетЗаказ!E12 -> 2 | C11: =IFERROR(VLOOKUP(#REF!,Подоконники!C:G,1,0),"") ->  | G11: =СчетЗаказ!J12 -> Підвіконня KRAFT Горіх (м. п.) | P11: =СчетЗаказ!S12 -> 150 | R11: =СчетЗаказ!U12 -> 1305 | T11: =СчетЗаказ!W12 -> 1 | V11: =СчетЗаказ!Y12 -> 130 | X11: =СчетЗаказ!AA12 -> 0 | Y11: =СчетЗаказ!AB12 -> 169.65
B12: =СчетЗаказ!E13 -> 3 | C12: =IFERROR(VLOOKUP(#REF!,Подоконники!C:G,1,0),"") ->  | G12: =СчетЗаказ!J13 -> Заглушка до п-ння KRAFT Горіх (шт.) | P12: =СчетЗаказ!S13 -> 0 | R12: =СчетЗаказ!U13 -> 1 | T12: =СчетЗаказ!W13 -> 2 | V12: =СчетЗаказ!Y13 -> 45 | X12: =СчетЗаказ!AA13 -> 0 | Y12: =СчетЗаказ!AB13 -> 0.09
B13: =СчетЗаказ!E14 ->  | C13: =IFERROR(VLOOKUP(#REF!,Подоконники!C:G,1,0),"") ->  | P13: =СчетЗаказ!S14 ->  | R13: =СчетЗаказ!U14 -> 0 | T13: =СчетЗаказ!W14 -> 0 | V13: =СчетЗаказ!Y14 ->  | X13: =СчетЗаказ!AA14 -> 0 | Y13: =СчетЗаказ!AB14 -> 
B14: =СчетЗаказ!E15 ->  | C14: =IFERROR(VLOOKUP(#REF!,Подоконники!C:G,1,0),"") ->  | P14: =СчетЗаказ!S15 ->  | R14: =СчетЗаказ!U15 -> 0 | T14: =СчетЗаказ!W15 -> 0 | V14: =СчетЗаказ!Y15 ->  | X14: =СчетЗаказ!AA15 -> 0 | Y14: =СчетЗаказ!AB15 -> 
B15: =СчетЗаказ!E16 ->  | C15: =IFERROR(VLOOKUP(#REF!,Подоконники!C:G,1,0),"") ->  | P15: =СчетЗаказ!S16 ->  | R15: =СчетЗаказ!U16 -> 0 | T15: =СчетЗаказ!W16 -> 0 | V15: =СчетЗаказ!Y16 ->  | X15: =СчетЗаказ!AA16 -> 0 | Y15: =СчетЗаказ!AB16 -> 
B16: =СчетЗаказ!E17 ->  | C16: =IFERROR(VLOOKUP(#REF!,Подоконники!C:G,1,0),"") ->  | P16: =СчетЗаказ!S17 ->  | R16: =СчетЗаказ!U17 -> 0 | T16: =СчетЗаказ!W17 -> 0 | V16: =СчетЗаказ!Y17 ->  | X16: =СчетЗаказ!AA17 -> 0 | Y16: =СчетЗаказ!AB17 -> 
B17: =СчетЗаказ!E18 ->  | C17: =IFERROR(VLOOKUP(#REF!,Подоконники!C:G,1,0),"") ->  | P17: =СчетЗаказ!S18 ->  | R17: =СчетЗаказ!U18 -> 0 | T17: =СчетЗаказ!W18 -> 0 | V17: =СчетЗаказ!Y18 ->  | X17: =СчетЗаказ!AA18 -> 0 | Y17: =СчетЗаказ!AB18 -> 
B18: =СчетЗаказ!E19 ->  | C18: =IFERROR(VLOOKUP(#REF!,Подоконники!C:G,1,0),"") ->  | P18: =СчетЗаказ!S19 ->  | R18: =СчетЗаказ!U19 -> 0 | T18: =СчетЗаказ!W19 -> 0 | V18: =СчетЗаказ!Y19 ->  | X18: =СчетЗаказ!AA19 -> 0 | Y18: =СчетЗаказ!AB19 -> 
B19: =СчетЗаказ!E20 ->  | C19: =IFERROR(VLOOKUP(#REF!,Подоконники!C:G,1,0),"") ->  | P19: =СчетЗаказ!S20 ->  | R19: =СчетЗаказ!U20 -> 0 | T19: =СчетЗаказ!W20 -> 0 | V19: =СчетЗаказ!Y20 ->  | X19: =СчетЗаказ!AA20 -> 0 | Y19: =СчетЗаказ!AB20 -> 
Y20: =SUM(Y10:Z19) -> 325.74
